bitfinex-derivatives/quotes_SOLF0:USTF0_20260213
["timestamp","ask_amount","ask_price","bid_price","bid_amount"]
[1771009681490,6.08295599,85.438,85.389,10.5457]
[1771009681690,6.08295599,85.438,85.384,8.64504255]
[1771009681892,106.52,85.445,85.384,8.64504255]
[1771009682890,106.52,85.445,85.402,10.544]
[1771009683189,6.05623956,85.444,85.402,10.544]
[1771009683485,2.03735144,85.469,85.384,8.64504255]
[1771009683486,6.05623956,85.443,85.384,8.64504255]
[1771009683682,6.06004833,85.441,85.384,8.64504255]
[1771009683882,6.06004833,85.425,85.368,8.64504255]
[1771009684485,6.03307293,85.421,85.368,8.64504255]
[1771009684994,5.99373533,85.419,85.368,8.64504255]
[1771009685991,10.5423,85.417,85.371,10.5479]
[1771009686592,10.5423,85.417,85.377,10.5471]
[1771009687292,5.99373533,85.419,85.377,10.5471]
[1771009690493,5.88466507,85.434,85.384,8.64504255]
[1771009690688,180.72541222,85.472,85.384,8.64504255]
[1771009690689,107.78,85.438,85.384,8.64504255]
[1771009691290,5.88466507,85.45,85.412,10.5428]
[1771009692491,5.88466507,85.45,85.401,8.64504255]
[1771009692696,5.88466507,85.45,85.384,8.64504255]
[1771009693489,5.88466507,85.45,85.407,10.5435]
[1771009693790,5.88466507,85.45,85.384,8.64504255]
[1771009694591,5.69091408,85.433,85.37,8.64504255]
[1771009694793,5.69091408,85.431,85.355,8.64504255]
[1771009694994,5.69091408,85.429,85.355,8.64504255]
[1771009695495,35.15,85.464,85.371,10.5479]
[1771009695496,5.66717666,85.413,85.371,10.5479]
[1771009696590,10.5443,85.402,85.361,10.5492]
[1771009696792,5.6509048,85.401,85.361,10.5492]
[1771009698797,10.5445,85.4,85.361,10.5492]
[1771009699488,10.5445,85.4,85.355,8.64504255]
[1771009699793,5.6509048,85.401,85.331,14.33314295]
[1771009699794,10.5452,85.394,85.331,14.33314295]
[1771009699996,5.6509048,85.401,85.332,8.64504255]
[1771009700498,5.4972927,85.399,85.332,8.64504255]
[1771009700698,10.547,85.38,85.336,10.5522]
[1771009700895,5.4972927,85.397,85.332,8.64504255]
[1771009701097,5.4972927,85.397,85.28,28.46433052]
[1771009701098,5.4972927,85.397,85.292,8.64504255]
[1771009701291,21.0853,85.415,85.302,10.5565]
[1771009701292,5.47525239,85.354,85.302,10.5565]
[1771009701487,5.47525239,85.352,85.292,8.64504255]
[1771009701692,5.47857848,85.35,85.292,8.64504255]
[1771009702390,5.36480055,85.368,85.302,8.64504255]
[1771009702597,5.36480055,85.384,85.302,8.64504255]
[1771009703000,14.46018705,85.439,85.302,8.64504255]
[1771009703001,5.36480055,85.382,85.302,8.64504255]
[1771009703199,5.3431862,85.38,85.302,8.64504255]
[1771009703400,5.3431862,85.364,85.314,10.5549]
[1771009703600,5.3431862,85.364,85.302,8.64504255]
[1771009704801,10.5493,85.361,85.304,10.5562]
[1771009705503,10.55,85.355,85.304,10.5562]
[1771009706105,5.39548631,85.354,85.292,10.5577]
[1771009706402,5.39548631,85.352,85.292,10.5577]
[1771009706604,10.5517,85.341,85.292,10.5577]
[1771009706803,109.1,85.351,85.296,10.5572]
[1771009707703,10.5507,85.35,85.296,10.5572]
[1771009708098,10.5507,85.35,85.296,19.20224255]
[1771009708303,10.5495,85.359,85.307,8.64504255]
[1771009708504,109.36,85.358,85.307,8.64504255]
[1771009709806,109.36,85.358,85.311,10.5554]
[1771009710211,10.5499,85.356,85.311,10.5554]
[1771009710600,5.34861047,85.368,85.318,19.19954255]
[1771009710912,5.34753325,85.366,85.274,8.31698162]
[1771009711405,15.87802074,85.355,85.308,10.5557]
[1771009711808,5.33359063,85.354,85.296,8.31698162]
[1771009712205,10.5513,85.344,85.297,10.557]
[1771009712406,5.31430008,85.343,85.297,10.557]
[1771009713320,5.37189101,85.341,85.28,8.31698162]
[1771009713507,5.37189101,85.356,85.28,8.31698162]
[1771009713809,5.37189101,85.356,85.304,10.5562]
[1771009715114,93.52,85.359,85.301,8.31698162]
[1771009715115,15.79737151,85.348,85.301,8.31698162]
[1771009716122,93.52,85.359,85.303,8.31698162]
[1771009716321,5.23084786,85.358,85.289,8.31698162]
[1771009717221,10.5511,85.346,85.302,10.5564]
[1771009718010,10.85516988,85.409,85.303,8.10880897]
[1771009718214,5.17743224,85.407,85.303,8.10880897]
[1771009718622,109.96,85.408,85.325,10.5536]
[1771009718623,10.548,85.371,85.325,10.5536]
[1771009718822,10.548,85.371,85.326,8.10880897]
[1771009719010,5.13256566,85.37,85.326,8.10880897]
[1771009719211,5.13256566,85.37,85.311,8.10880897]
[1771009719922,5.13256566,85.37,85.254,21.34277382]
[1771009719923,5.13525421,85.345,85.285,8.10880897]
[1771009721720,10.5528,85.332,85.29,10.5579]
[1771009722111,5.13525421,85.345,85.291,8.10880897]
[1771009723321,93.54,85.348,85.299,8.10880897]
[1771009723821,98.41744162,85.348,85.299,8.10880897]
[1771009724023,4.86082264,85.339,85.246,8.10880897]
[1771009724823,4.86082264,85.339,85.282,8.10880897]
[1771009725724,10.5521,85.338,85.287,10.5584]
[1771009726318,10.5521,85.338,85.288,8.10880897]
[1771009728525,10.5527,85.334,85.288,8.10880897]
[1771009732030,10.5527,85.334,85.291,10.5578]
[1771009732229,10.5527,85.334,85.291,18.66660897]
[1771009732725,10.5534,85.328,85.291,8.10880897]
[1771009735421,10.5525,85.335,85.292,10.5577]
[1771009737035,15.5684503,85.335,85.292,10.5577]
[1771009737637,10.5532,85.33,85.292,10.5577]
[1771009738631,5.0159503,85.335,85.291,8.10880897]
[1771009738837,5.0159503,85.335,85.297,10.557]
[1771009739334,10.5527,85.333,85.293,18.66640897]
[1771009739735,5.02963085,85.362,85.294,8.10880897]
[1771009739934,5.02963085,85.362,85.304,8.10880897]
[1771009740432,5.02963085,85.362,85.231,28.46433052]
[1771009740433,5.01580135,85.36,85.309,8.10880897]
[1771009740836,10.5499,85.356,85.309,8.10880897]
[1771009741230,5.01344537,85.398,85.318,7.66476438]
[1771009741842,5.01344537,85.398,85.35,7.66476438]
[1771009742143,110.12,85.437,85.35,7.66476438]
[1771009742144,5.0171527,85.412,85.35,7.66476438]
[1771009742344,10.5459,85.388,85.332,7.66476438]
[1771009742544,5.00372468,85.387,85.332,7.66476438]
[1771009743337,10.5464,85.384,85.335,7.66476438]
[1771009743641,4.60869951,85.413,85.335,7.66476438]
[1771009744845,10.5451,85.395,85.348,10.5508]
[1771009745236,10.5451,85.395,85.349,7.66476438]
[1771009745538,10.5451,85.395,85.351,7.66476438]
[1771009749037,15.43667799,85.393,85.351,7.66476438]
[1771009749235,4.89137799,85.392,85.351,7.66476438]
[1771009749439,4.89137799,85.392,85.341,10.5516]
[1771009749845,10.5457,85.39,85.345,7.66476438]
[1771009751545,10.5457,85.39,85.347,7.66476438]
[1771009752552,4.89137799,85.392,85.349,7.66476438]
[1771009753453,10.5439,85.405,85.357,7.66476438]
[1771009755948,4.79576297,85.397,85.314,7.66476438]
[1771009756258,4.79576297,85.397,85.317,7.66476438]
[1771009756456,4.78439703,85.419,85.317,7.66476438]
[1771009756846,4.78439703,85.419,85.363,7.66476438]
[1771009757549,10.5433,85.409,85.366,10.5485]
[1771009757854,4.78439703,85.419,85.367,7.66476438]
[1771009758947,4.78439703,85.419,85.354,7.66476438]
[1771009760750,10.5439,85.405,85.357,7.66476438]
[1771009760955,4.78439703,85.419,85.357,7.66476438]
[1771009761556,4.78439703,85.419,85.307,279.06617382]
[1771009761557,4.60393265,85.44,85.367,7.66476438]
[1771009761754,4.60393265,85.439,85.367,7.66476438]
[1771009762151,15.14363265,85.439,85.391,7.66476438]
[1771009763056,15.14363265,85.439,85.392,10.5453]
[1771009763251,10.5408,85.43,85.392,7.66476438]
[1771009763657,10.5408,85.43,85.384,10.5463]
[1771009764153,4.66260826,85.438,85.387,18.21066438]
[1771009764752,10.5401,85.436,85.387,18.21066438]
[1771009764952,4.66260826,85.438,85.391,7.66476438]
[1771009765953,10.5399,85.437,85.391,7.66476438]
[1771009766660,10.5399,85.437,85.356,21.0996]
[1771009766661,4.66260826,85.438,85.393,7.66476438]
[1771009767758,10.5389,85.445,85.398,7.66476438]
[1771009768859,10.5389,85.445,85.402,10.5441]
[1771009769161,10.5397,85.439,85.398,7.66476438]
[1771009771163,10.5387,85.446,85.402,7.99734894]
[1771009771368,4.65891785,85.452,85.402,7.99734894]
[1771009771760,4.65891785,85.452,85.405,18.54104894]
[1771009772557,4.65891785,85.452,85.405,7.99734894]
[1771009773257,121.1981,85.451,85.407,7.99734894]
[1771009774859,10.5398,85.438,85.407,7.99734894]
[1771009775160,10.5398,85.438,85.382,7.99734894]
[1771009775360,4.3969511,85.437,85.382,7.99734894]
[1771009775576,4.39837606,85.434,85.382,7.99734894]
[1771009776855,4.39837606,85.434,85.394,10.545]
[1771009777864,4.58236574,85.427,85.337,7.36154504]
[1771009778064,4.58236574,85.425,85.337,7.36154504]
[1771009778867,4.56913206,85.412,85.364,10.5488]
[1771009779955,10.5442,85.402,85.364,10.5488]
[1771009780160,4.56913206,85.412,85.364,17.91034504]
[1771009780670,4.56913206,85.412,85.365,7.36154504]
[1771009781269,10.5441,85.403,85.365,7.36154504]
[1771009783465,10.5432,85.41,85.367,10.5484]
[1771009783765,10.5432,85.41,85.367,17.90994504]
[1771009784161,4.56913206,85.412,85.367,17.90994504]
[1771009784366,4.56913206,85.412,85.354,7.36154504]
[1771009784756,10.5445,85.399,85.362,10.5491]
[1771009784958,4.56913206,85.412,85.354,7.36154504]
[1771009785560,10.5443,85.401,85.354,7.36154504]
[1771009786156,4.78320636,85.427,85.369,7.36154504]
[1771009786369,116.52320636,85.427,85.369,7.36154504]
[1771009787870,10.5415,85.424,85.383,10.5465]
[1771009788667,116.52320636,85.427,85.389,10.5457]
[1771009789371,10.5413,85.426,85.382,10.5466]
[1771009790872,10.5413,85.426,85.389,10.5457]
[1771009791773,10.5413,85.426,85.382,17.90814504]
[1771009794373,15.43768612,85.426,85.382,17.90814504]
[1771009795173,15.43006462,85.423,85.382,17.90814504]
[1771009795372,4.88846462,85.422,85.382,17.90814504]
[1771009795976,4.88846462,85.422,85.382,7.36154504]
[1771009796169,4.88238908,85.42,85.369,7.36154504]
[1771009796376,2.03791219,85.454,85.369,7.36154504]
[1771009796377,4.88238908,85.418,85.369,7.36154504]
[1771009796578,4.88629131,85.416,85.369,7.36154504]
[1771009797165,4.88629131,85.416,85.371,10.548]
[1771009797372,4.88629131,85.416,85.372,7.36154504]
[1771009798380,10.5427,85.414,85.372,7.36154504]
[1771009799376,10.5431,85.411,85.372,7.36154504]
[1771009800173,10.5435,85.408,85.364,10.5488]
[1771009800374,4.83170926,85.407,85.364,10.5488]
[1771009800575,4.79178824,85.42,85.368,7.36154504]
[1771009800779,114.18,85.419,85.368,7.36154504]
[1771009801177,4.78479104,85.418,85.369,7.40352908]
[1771009801579,114.28,85.417,85.369,7.40352908]
[1771009802785,114.28,85.417,85.373,7.40352908]
[1771009803475,4.5620651,85.432,85.383,7.40352908]
[1771009803678,4.56293619,85.43,85.383,7.40352908]
[1771009804083,114.6,85.431,85.383,7.40352908]
[1771009804380,114.66,85.437,85.383,7.40352908]
[1771009805185,114.82,85.437,85.383,7.40352908]
[1771009806082,4.60216522,85.433,85.383,7.40352908]
[1771009806483,4.59605429,85.46,85.383,7.40352908]
[1771009806789,4.59605429,85.46,85.414,7.40352908]
[1771009807386,115.08,85.466,85.43,10.5407]
[1771009807580,4.55998752,85.508,85.431,7.40352908]
[1771009807780,29.14362829,85.564,85.397,164.0304]
[1771009807781,4.55998752,85.506,85.455,7.40352908]
[1771009807984,8.752e-05,85.525,85.455,7.40352908]
[1771009808187,115.3,85.525,85.455,7.40352908]
[1771009808782,2.03543886,85.554,85.472,8.02042192]
[1771009808783,93.46,85.547,85.472,8.02042192]
[1771009809280,93.46,85.546,85.472,8.02042192]
[1771009809881,0.05922128,85.545,85.472,8.02042192]
[1771009810289,0.05922128,85.545,85.488,8.02025497]
[1771009811203,0.65352521,85.544,85.491,10.5331]
[1771009811397,0.65352521,85.544,85.488,8.02025497]
[1771009811791,10.5271,85.541,85.489,7.72047686]
[1771009811992,0.65352521,85.544,85.489,7.72047686]
[1771009812395,0.65125447,85.564,85.504,10.5316]
[1771009812598,10.85516988,85.641,85.505,7.72047686]
[1771009812795,178.37836666,85.665,85.517,8.04606931]
[1771009813002,178.37836666,85.665,85.573,10.523]
[1771009813196,2.03344669,85.655,85.567,8.04606931]
[1771009813399,10.5148,85.641,85.567,8.04606931]
[1771009813601,115.68,85.654,85.567,8.04606931]
[1771009814201,115.68,85.654,85.592,8.04597486]
[1771009814502,115.68,85.654,85.533,8.04597486]
[1771009814901,10.5135,85.651,85.577,10.5225]
[1771009815211,10.5135,85.651,85.532,93.42]
[1771009815212,115.68,85.654,85.578,8.11005822]
[1771009815408,115.68,85.654,85.582,8.11005822]
[1771009815911,126.1931,85.654,85.582,8.11005822]
[1771009816608,126.1931,85.654,85.499,163.8344]
[1771009816609,10.5146,85.643,85.566,8.03668357]
[1771009816815,2.03303091,85.645,85.548,8.03668357]
[1771009817204,116.36,85.644,85.548,8.03668357]
[1771009817609,10.5173,85.62,85.548,8.03668357]
[1771009818510,0.15662092,85.613,85.548,8.03668357]
[1771009819600,116.46,85.643,85.529,7.96179845]
[1771009819601,0.15487115,85.603,85.529,7.96179845]
[1771009819808,0.15487115,85.601,85.529,7.96179845]
[1771009820008,0.15487115,85.599,85.529,7.96179845]
[1771009820208,0.1530294,85.593,85.529,7.96179845]
[1771009820406,0.1530294,85.591,85.507,7.96179845]
[1771009820713,0.15648565,85.589,85.507,7.96179845]
[1771009820906,0.15648565,85.587,85.507,7.96179845]
[1771009821302,0.15468438,85.578,85.509,7.96007033]
[1771009821509,0.15483351,85.577,85.509,7.96007033]
[1771009822111,0.15310529,85.564,85.509,7.96007033]
[1771009823611,10.5244,85.563,85.509,7.96007033]
[1771009824014,0.14342777,85.562,85.509,7.96007033]
[1771009825120,0.06051354,85.547,85.488,8.00368051]
[1771009826218,0.05901533,85.545,85.488,8.00368051]
[1771009827314,93.34,85.551,85.489,7.98386955]
[1771009828721,10.5261,85.549,85.489,7.98386955]
[1771009829218,10.5284,85.53,85.476,7.9840873]
[1771009829918,0.09326216,85.519,85.425,7.98401822]
[1771009831118,10.5317,85.504,85.443,8.07934578]
[1771009831620,93.34,85.531,85.443,8.07934578]
[1771009831824,10.5295,85.522,85.466,18.61500555]
[1771009832825,10.5295,85.522,85.467,8.04797767]
[1771009834325,10.5304,85.514,85.467,8.04797767]
[1771009834928,10.5304,85.514,85.456,10.5374]
[1771009834929,102.84,85.531,85.451,8.01454244]
[1771009835323,10.5317,85.504,85.453,10.5378]
[1771009835522,10.5317,85.504,85.451,8.01454244]
[1771009836427,10.5317,85.504,85.452,10.538]
[1771009836624,0.05728854,85.511,85.453,7.99216717]
[1771009837828,10.5309,85.51,85.456,7.99225323]
[1771009839929,10.68551054,85.51,85.456,7.99225323]
[1771009840133,10.5317,85.504,85.456,7.99225323]
[1771009840328,0.15461054,85.509,85.439,7.94314541]
[1771009840734,10.5336,85.488,85.439,7.94314541]
[1771009841832,10.5336,85.488,85.439,18.48264541]
[1771009843230,10.5336,85.488,85.442,10.5392]
[1771009843634,0.17277336,85.495,85.442,18.45798344]
[1771009844128,0.17277336,85.495,85.445,7.91878344]
[1771009845434,21.0532,85.545,85.455,7.91546567]
[1771009845435,0.20234682,85.514,85.455,7.91546567]
[1771009845932,10.5325,85.497,85.455,7.91546567]
[1771009847133,21.0532,85.545,85.406,21.0873]
[1771009847134,10.5336,85.488,85.443,10.539]
[1771009847329,10.5336,85.488,85.444,7.91304166]
[1771009847824,10.5325,85.497,85.449,7.91299523]
[1771009850640,10.5325,85.497,85.38,13.962199]
[1771009850641,0.20600774,85.5,85.413,7.98618586]
[1771009850837,0.05500881,85.498,85.413,7.98618586]
[1771009851041,0.05500881,85.496,85.413,7.98618586]
[1771009851945,10.5363,85.466,85.424,7.98613646]
[1771009852131,0.05281043,85.496,85.424,7.98613646]
[1771009852639,10.5357,85.471,85.424,7.98613646]
[1771009855146,0.13002149,85.527,85.427,7.94587955]
[1771009855442,0.13002149,85.525,85.427,7.94587955]
[1771009855843,10.5342,85.483,85.439,7.94583546]
[1771009857445,10.5333,85.49,85.441,7.92875414]
[1771009857837,10.5341,85.484,85.441,7.92875414]
[1771009858039,10.5341,85.484,85.407,101.46]
[1771009858040,0.13010965,85.495,85.426,7.92871187]
[1771009858446,0.16113566,85.493,85.426,7.92871187]
[1771009858645,115.8,85.494,85.426,7.92871187]
[1771009858646,10.5361,85.468,85.426,7.92871187]
[1771009860245,0.14030591,85.479,85.426,7.92871187]
[1771009860452,10.5368,85.462,85.426,7.92871187]
[1771009860955,10.5359,85.469,85.426,7.92871187]
[1771009862656,10.535,85.476,85.428,7.93319441]
[1771009863246,0.14879114,85.493,85.431,7.93319441]
[1771009863851,0.14879114,85.493,85.419,18.47515574]
[1771009864153,0.14886849,85.475,85.42,7.93315574]
[1771009865347,0.16673877,85.472,85.42,7.93315574]
[1771009865749,0.16673877,85.472,85.405,7.92326784]
[1771009865955,0.16680869,85.47,85.405,7.92326784]
[1771009866851,10.5384,85.449,85.405,7.92326784]
[1771009867055,21.0674,85.488,85.374,7.90871722]
[1771009867056,0.19499887,85.457,85.374,7.90871722]
[1771009867653,0.19418817,85.474,85.411,7.90868354]
[1771009867857,21.0674,85.488,85.411,7.90868354]
[1771009867858,0.19418817,85.469,85.411,7.90868354]
[1771009868555,0.19418817,85.469,85.413,10.5427]
[1771009869259,0.19418817,85.469,85.417,7.84654396]
[1771009870753,10.5362,85.467,85.422,10.5416]
[1771009871159,10.5362,85.467,85.422,18.32023403]
[1771009871355,0.19418817,85.469,85.422,7.77863403]
[1771009871356,10.537,85.46,85.422,7.77863403]
[1771009872067,0.19418817,85.469,85.422,7.77863403]
[1771009872264,0.19418817,85.469,85.391,7.77863403]
[1771009872461,0.54259079,85.467,85.391,7.77863403]
[1771009872658,10.5378,85.454,85.398,7.77863403]
[1771009872860,0.54259079,85.467,85.398,7.77863403]
[1771009873369,10.5398,85.438,85.398,7.77863403]
[1771009873766,10.5406,85.431,85.379,7.77863403]
[1771009874162,0.59938577,85.442,85.379,7.77863403]
[1771009875160,10.5386,85.448,85.396,7.77863403]
[1771009876569,10.5393,85.441,85.396,7.77863403]
[1771009876770,0.48605144,85.447,85.396,7.77863403]
[1771009877468,10.5415,85.424,85.371,7.78113019]
[1771009877670,0.44124993,85.434,85.371,7.78113019]
[1771009877870,0.44129717,85.433,85.371,7.78113019]
[1771009879769,10.5422,85.418,85.371,7.78113019]
[1771009881270,0.44129717,85.433,85.344,446.93436169]
[1771009881271,10.5407,85.43,85.373,7.87292889]
[1771009881857,10.5395,85.44,85.375,7.87290287]
[1771009883869,10.5395,85.44,85.383,7.86774973]
[1771009885569,10.5395,85.44,85.385,7.87683246]
[1771009886167,0.24347301,85.465,85.397,7.87683246]
[1771009886561,0.22917345,85.481,85.397,7.87683246]
[1771009886764,10.5348,85.478,85.424,7.88398224]
[1771009886962,0.22917345,85.481,85.424,7.88398224]
[1771009887772,10.5367,85.463,85.424,7.88398224]
[1771009888164,0.22917345,85.481,85.381,7.88395606]
[1771009888365,0.22780157,85.474,85.381,7.88395606]
[1771009888867,10.5375,85.456,85.406,7.89827899]
[1771009889073,0.19842238,85.493,85.406,7.89827899]
[1771009889568,10.5356,85.472,85.417,10.5422]
[1771009889767,0.19847773,85.471,85.418,7.89825131]
[1771009891170,0.19847773,85.471,85.418,18.44035131]
[1771009891374,0.20241661,85.493,85.419,7.89744436]
[1771009892277,10.5358,85.47,85.419,7.89744436]
[1771009892579,0.20143467,85.479,85.419,7.89744436]
[1771009893274,10.5367,85.463,85.419,7.89744436]
[1771009895172,10.5379,85.453,85.419,7.89744436]
[1771009895377,115.58,85.458,85.405,7.83533323]
[1771009895583,0.32375068,85.457,85.405,7.83533323]
[1771009896770,115.58,85.458,85.405,7.83533323]
[1771009896975,115.88792109,85.458,85.405,7.83533323]
[1771009897175,0.30726487,85.457,85.405,7.83533323]
[1771009897778,10.5378,85.454,85.405,18.37903323]
[1771009898170,0.30683644,85.454,85.405,7.83533323]
[1771009899678,116.49218839,85.453,85.367,7.86875006]
[1771009899878,0.25218839,85.451,85.386,7.86875006]
[1771009900079,0.25218839,85.451,85.357,7.86875006]
[1771009900278,0.25160269,85.449,85.357,7.86875006]
[1771009900578,0.25160269,85.447,85.357,7.86875006]
[1771009901568,10.5417,85.422,85.37,10.548]
[1771009901774,0.06040199,85.434,85.371,7.96402436]
[1771009902378,10.5416,85.423,85.377,7.96402436]
[1771009903478,10.5406,85.432,85.38,8.04591162]
[1771009903871,0.06040199,85.434,85.38,8.04591162]
[1771009904776,10.5413,85.425,85.38,8.04591162]
[1771009905376,10.5405,85.432,85.382,8.0535281]
[1771009905580,0.06040199,85.434,85.382,8.0535281]
[1771009906780,10.5414,85.425,85.382,8.0535281]
[1771009907180,0.06040199,85.434,85.382,8.0535281]
[1771009907480,10.543,85.412,85.382,8.0535281]
[1771009909777,21.0773,85.447,85.369,8.09113141]
[1771009909979,116.3,85.446,85.369,8.09113141]
[1771009910384,10.544,85.403,85.369,8.09113141]
[1771009911184,10.91684802,85.441,85.357,8.09915927]
[1771009911682,10.91684802,85.445,85.357,8.09915927]
[1771009911884,116.64,85.444,85.357,8.09915927]
[1771009912183,116.64,85.444,85.376,8.09913139]
[1771009913079,116.86,85.443,85.377,8.1321674]
[1771009913282,116.9,85.442,85.377,8.1321674]
[1771009914886,10.5417,85.423,85.377,8.1321674]
[1771009918585,10.5417,85.423,85.379,8.22487578]
[1771009919692,10.5393,85.441,85.381,8.2248482]
[1771009919891,109.82,85.44,85.381,8.2248482]
[1771009920091,93.48,85.439,85.381,8.2248482]
[1771009920387,10.91405732,85.451,85.337,8.2248482]
[1771009920598,10.91405732,85.44,85.337,8.2248482]
[1771009920895,35.15,85.426,85.339,8.3952116]
[1771009921091,10.91405732,85.425,85.339,8.3952116]
[1771009921392,117.14,85.424,85.339,8.3952116]
[1771009922891,10.5436,85.407,85.359,8.24520494]
[1771009923687,10.5426,85.415,85.364,8.24517055]
[1771009924691,10.5426,85.415,85.366,10.5485]
[1771009924901,10.5426,85.415,85.367,8.16341522]
[1771009926301,10.5433,85.409,85.367,8.16341522]
[1771009926803,93.48,85.425,85.367,8.16341522]
[1771009927694,93.48,85.425,85.37,8.16542081]
[1771009928200,10.5415,85.424,85.384,8.16542081]
[1771009929798,117.74,85.436,85.384,8.16542081]
[1771009929993,10.5423,85.417,85.384,8.16542081]
[1771009930600,10.5415,85.424,85.384,8.16542081]
[1771009931601,117.74,85.436,85.387,8.17847078]
[1771009931602,10.54,85.436,85.387,8.17847078]
[1771009932005,118.0,85.437,85.387,8.17847078]
[1771009932203,10.542,85.42,85.373,8.17847078]
[1771009932605,118.0,85.437,85.373,8.17847078]
[1771009933098,118.0,85.437,85.374,8.17235721]
[1771009934903,10.5428,85.413,85.374,8.17235721]
[1771009936603,10.5436,85.407,85.374,8.17235721]
[1771009937404,21.0795,85.438,85.374,8.17235721]
[1771009937601,118.36,85.437,85.374,8.17235721]
[1771009937800,10.5443,85.401,85.374,8.17235721]
[1771009938107,10.5443,85.401,85.352,8.19691894]
[1771009939698,10.5443,85.401,85.333,14.28049925]
[1771009939699,10.5443,85.401,85.354,10.55]
[1771009939903,10.5443,85.401,85.355,8.19987783]
[1771009940811,10.5443,85.401,85.359,8.23073953]
[1771009941702,10.5435,85.408,85.359,8.23073953]
[1771009941900,31.98489798,85.436,85.36,8.23071549]
[1771009942301,21.08,85.436,85.36,8.23071549]
[1771009943514,10.90489798,85.433,85.36,8.23071549]
[1771009943811,21.08,85.436,85.36,8.23071549]
[1771009944311,31.98489798,85.436,85.36,8.23071549]
[1771009944700,10.544,85.404,85.36,8.23071549]
[1771009945112,21.0802,85.435,85.36,8.23071549]
[1771009945313,10.5447,85.398,85.36,8.23071549]
[1771009945719,10.90489798,85.432,85.36,8.23071549]
[1771009946115,10.90489798,85.432,85.361,8.17555291]
[1771009946715,10.5437,85.406,85.361,8.17555291]
[1771009947510,10.5445,85.399,85.361,8.17555291]
[1771009948714,35.15,85.431,85.349,8.22812226]
[1771009948911,10.90489798,85.416,85.328,8.22812226]
[1771009949116,10.90489798,85.412,85.328,8.22812226]
[1771009949620,35.15,85.42,85.328,8.22812226]
[1771009949621,10.90489798,85.417,85.328,8.22812226]
[1771009950120,10.90489798,85.418,85.328,8.22812226]
[1771009950417,130.22489798,85.417,85.328,8.22812226]
[1771009950812,10.90489798,85.413,85.328,8.22812226]
[1771009951017,10.90489798,85.409,85.328,8.22812226]
[1771009951217,10.90489798,85.41,85.328,8.22812226]
[1771009951420,10.5476,85.375,85.328,8.22812226]
[1771009952020,119.72,85.378,85.329,10.5531]
[1771009952317,119.72,85.378,85.328,8.22812226]
[1771009953225,119.72,85.378,85.339,8.26786168]
[1771009953408,119.72,85.378,85.325,8.26786168]
[1771009953608,120.02,85.377,85.325,8.26786168]
[1771009954816,10.5478,85.373,85.325,8.26786168]
[1771009957324,10.5493,85.36,85.325,8.26786168]
[1771009957523,10.5493,85.36,85.315,8.23886634]
[1771009958724,94.44,85.363,85.321,8.25928491]
[1771009959422,10.5491,85.362,85.324,8.25928491]
[1771009959727,94.44,85.363,85.324,8.25928491]
[1771009960129,94.44,85.363,85.326,8.25926504]
[1771009965036,94.44,85.363,85.312,459.46061505]
[1771009965037,94.44,85.363,85.336,8.27655291]
[1771009965331,10.5471,85.379,85.336,8.27655291]
[1771009965529,118.68,85.384,85.314,8.27655291]
[1771009965530,10.5481,85.37,85.314,8.27655291]
[1771009966834,10.5481,85.37,85.32,8.28676334]
[1771009967932,10.5481,85.37,85.325,8.28674682]
[1771009968630,93.5,85.38,85.336,8.27798236]
[1771009968837,10.91132515,85.439,85.336,8.27798236]
[1771009969337,21.0799,85.437,85.336,8.27798236]
[1771009969532,93.5,85.438,85.336,8.27798236]
[1771009970034,10.5451,85.395,85.344,18.82916495]
[1771009970229,10.5451,85.395,85.345,8.27796495]
[1771009971830,10.5451,85.395,85.349,8.34167452]
[1771009972333,10.5431,85.411,85.358,8.34167452]
[1771009973738,10.5431,85.411,85.363,8.34158676]
[1771009974032,10.5411,85.427,85.363,8.34158676]
[1771009974435,93.5,85.44,85.363,8.34158676]
[1771009974937,10.5419,85.42,85.374,18.90853215]
[1771009975436,10.5419,85.42,85.374,8.36103215]
[1771009976829,10.5427,85.414,85.365,10.5486]
[1771009977137,10.5427,85.414,85.366,8.38651715]
[1771009978535,93.5,85.44,85.366,8.38651715]
[1771009978740,21.0751,85.456,85.366,8.38651715]
[1771009978741,121.46,85.439,85.366,8.38651715]
[1771009979331,10.543,85.411,85.366,8.38651715]
[1771009980242,121.5,85.438,85.366,8.38651715]
[1771009981844,10.5429,85.413,85.366,8.38651715]
[1771009982139,35.17,85.437,85.313,8.38149269]